bitfinex/quotes_SOLUSD_20240905
["timestamp","ask_amount","ask_price","bid_price","bid_amount"]
[1725511332453,0.8634582,133.33,133.27,26.2616]
[1725511332629,1.01427501,133.32,133.28,30.0]
[1725511332959,8.51517501,133.32,133.28,30.0]
[1725511333252,20.0,133.31,133.28,30.0]
[1725511333448,1.01427501,133.3,133.28,30.0]
[1725511334053,1.01427501,133.3,133.27,26.2616]
[1725511334442,21.01427501,133.31,133.27,26.2616]
[1725511334767,20.0,133.31,133.28,7.5027]
[1725511334940,20.0,133.32,133.28,7.5027]
[1725511335458,21.01427501,133.32,133.28,7.5027]
[1725511336566,20.0,133.32,133.28,7.5027]
[1725511338344,21.01427501,133.32,133.28,7.5027]
[1725511338647,20.0,133.32,133.29,7.5023]
[1725511339460,0.8634582,133.33,133.25,11.05486602]
[1725511339634,0.8634582,133.33,133.31,7.5012]
[1725511342885,0.8634582,133.33,133.32,7.5007]
[1725511345860,0.8634582,133.33,133.31,26.2539]
[1725511348062,0.8634582,133.33,133.32,7.5007]
[1725511353143,0.8634582,133.33,133.31,26.254]
[1725511354272,0.8634582,133.33,133.31,18.7528]
[1725511355159,0.8634582,133.33,133.31,26.254]
[1725511356449,0.8634582,133.33,133.31,18.7528]
[1725511356751,0.8634582,133.33,133.32,7.5007]
[1725511356974,0.8634582,133.33,133.31,26.2539]
[1725511357860,0.3634582,133.33,133.31,26.2539]
[1725511359381,0.3634582,133.33,133.28,18.7565]
[1725511359574,0.3634582,133.33,133.3,30.0]
[1725511359793,7.8640582,133.33,133.3,30.0]
[1725511360283,1.01427501,133.32,133.3,30.0]
[1725511361263,1.01427501,133.32,133.28,26.2594]
[1725511361878,8.87833321,133.33,133.28,26.2594]
[1725511363171,1.01427501,133.32,133.28,26.2594]
[1725511363674,8.87833321,133.33,133.28,26.2594]
[1725511364817,1.01427501,133.32,133.25,18.761]
[1725511364982,21.1425,133.3,133.22,18.7655]
[1725511365182,7.5041,133.26,133.22,18.7655]
[1725511365483,20.0,133.25,133.22,18.7655]
[1725511366073,27.5047,133.25,133.2,7.5073]
[1725511370379,15.9725,133.24,133.2,7.5073]
[1725511370574,15.9725,133.24,133.2,6.0073]
[1725511373818,24.49207501,133.24,133.2,7.5074]
[1725511374312,20.0,133.23,133.19,26.2773]
[1725511375183,21.01427501,133.23,133.19,18.7694]
[1725511375388,7.5063,133.22,133.17,7.509]
[1725511376316,7.5063,133.22,133.18,7.5085]
[1725511377604,8.52117501,133.21,133.17,7.5091]
[1725511378201,8.52117501,133.21,133.17,8.98476275]
[1725511378399,20.0,133.23,133.18,1.47555194]
[1725511378400,7.5064,133.22,133.18,1.47555194]
[1725511378895,7.5064,133.22,133.18,8.98395194]
[1725511379095,18.7595,133.27,133.14,21.7975]
[1725511379096,23.8371,133.28,133.23,7.5058]
[1725511379299,8.51827501,133.27,133.22,7.5062]
[1725511379529,1.01427501,133.26,133.22,7.5062]
[1725511379843,8.51857501,133.26,133.21,26.2736]
[1725511380405,20.0,133.25,133.21,26.2736]
[1725511381324,20.0,133.25,133.21,18.7669]
[1725511381325,27.5047,133.25,133.21,18.7669]
[1725511381528,1.01427501,133.24,133.21,18.7669]
[1725511381906,8.51947501,133.24,133.2,7.5074]
[1725511382211,1.01427501,133.24,133.2,7.5074]
[1725511384200,1.01427501,133.24,133.21,7.5068]
[1725511384400,27.5047,133.25,133.21,7.5068]
[1725511384711,20.0,133.25,133.21,7.5068]
[1725511385097,20.0,133.25,133.22,18.7654]
[1725511385404,21.01427501,133.27,133.23,7.5057]
[1725511386310,20.0,133.27,133.24,7.505]
[1725511386507,20.0,133.27,133.23,7.5056]
[1725511386909,27.5036,133.27,133.23,7.5056]
[1725511387319,1.01427501,133.26,133.22,26.2716]
[1725511388812,8.51837501,133.26,133.22,26.2716]
[1725511389025,20.0,133.25,133.22,18.7654]
[1725511389916,1.01427501,133.24,133.21,7.5067]
[1725511390512,7.5065,133.22,133.17,7.5087]
[1725511390724,20.0,133.21,133.16,18.7734]
[1725511390931,20.0,133.21,133.18,7.5081]
[1725511391320,20.0,133.23,133.18,18.7709]
[1725511392431,20.0,133.23,133.2,7.5074]
[1725511394628,16.5146,133.24,133.2,7.5074]
[1725511394629,16.62357501,133.28,133.22,7.5063]
[1725511394815,7.504,133.27,133.22,7.5063]
[1725511395133,1.01427501,133.26,133.22,7.5063]
[1725511396104,21.01427501,133.26,133.22,7.5063]
[1725511396310,27.5042,133.26,133.22,7.5063]
[1725511396615,20.0,133.26,133.23,7.5057]
[1725511398123,20.0,133.27,133.23,7.5057]
[1725511400512,21.01427501,133.27,133.23,7.5057]
[1725511400836,20.0,133.27,133.23,7.5057]
[1725511402442,21.01427501,133.27,133.23,7.5057]
[1725511403436,20.0,133.27,133.24,7.5048]
[1725511404118,20.0,133.28,133.24,7.5048]
[1725511407420,27.5031,133.28,133.23,7.5057]
[1725511407937,20.0,133.28,133.24,7.5051]
[1725511409639,7.8640582,133.33,133.24,16.6489]
[1725511409849,7.5007,133.32,133.28,7.5029]
[1725511410248,1.01427501,133.31,133.28,7.5029]
[1725511410750,8.87803321,133.33,133.28,7.5029]
[1725511411429,20.0,133.32,133.28,7.5029]
[1725511415048,7.8637582,133.33,133.29,7.5024]
[1725511415350,0.3634582,133.33,133.29,7.5024]
[1725511415729,0.3634582,133.33,133.3,7.5018]
[1725511415923,0.3634582,133.33,133.3,18.7541]
[1725511416947,0.3634582,133.33,133.32,7.5007]
[1725511421545,0.3634582,133.33,133.32,52.5007]
[1725511422452,0.3634582,133.33,133.3,26.2559]
[1725511422751,0.3634582,133.33,133.3,18.7541]
[1725511424349,0.3634582,133.33,133.31,7.5008]
[1725511424549,0.3634582,133.33,133.32,7.5007]
[1725511427559,0.3634582,133.33,133.32,52.5007]
[1725511431946,0.3634582,133.33,133.32,93.55556602]
[1725511432164,0.3634582,133.33,133.32,113.55556602]
[1725511433561,0.3634582,133.33,133.32,135.91346602]
[1725511434237,0.3634582,133.33,133.32,124.8586]
[1725511434447,0.3634582,133.33,133.32,104.8586]
[1725511434759,0.3634582,133.33,133.32,98.2626]
[1725511434968,0.3634582,133.33,133.32,82.5007]
[1725511437339,0.3634582,133.33,133.32,52.5007]
[1725511440446,0.3634582,133.33,133.31,7.5011]
[1725511440762,0.3634582,133.33,133.27,18.7581]
[1725511440958,7.5017,133.31,133.29,30.0]
[1725511441338,7.5017,133.31,133.27,18.7581]
[1725511441536,7.5028,133.29,133.24,18.7623]
[1725511441739,7.5036,133.27,133.23,7.5056]
[1725511441965,7.5036,133.27,133.24,30.0]
[1725511442271,7.5036,133.27,133.22,7.5062]
[1725511443445,7.5036,133.27,133.23,45.0]
[1725511447066,7.5036,133.27,133.23,52.5057]
[1725511449376,7.5036,133.27,133.23,45.0]
[1725511449585,7.5036,133.27,133.22,7.5062]
[1725511450388,7.5042,133.26,133.22,7.5062]
[1725511450885,15.0575,133.29,133.23,11.05486602]
[1725511451070,15.0575,133.29,133.24,45.0]
[1725511451269,7.5019,133.3,133.26,18.7601]
[1725511451582,23.0085,133.32,133.27,52.5031]
[1725511456074,15.5077,133.32,133.27,45.0]
[1725511456384,0.3634582,133.33,133.29,7.5022]
[1725511459782,7.8637582,133.33,133.28,18.7567]
[1725511459990,7.8637582,133.33,133.28,26.2591]
[1725511460984,7.8637582,133.33,133.29,7.5023]
[1725511465672,0.3634582,133.33,133.29,7.5023]
[1725511468992,0.3634582,133.33,133.3,52.5017]
[1725511472866,0.3634582,133.33,133.3,63.7539]
[1725511474695,0.3634582,133.33,133.3,93.7539]
[1725511475199,0.3634582,133.33,133.31,7.5009]
[1725511479193,0.3634582,133.33,133.3,93.7539]
[1725511479194,7.8637582,133.33,133.3,48.7539]
[1725511479385,7.8637582,133.33,133.29,7.5023]
[1725511479923,7.8637582,133.33,133.28,7.5028]
[1725511479924,7.5009,133.32,133.28,7.5028]
[1725511481300,7.8637582,133.33,133.29,7.5023]
[1725511482794,7.8637582,133.33,133.28,7.5029]
[1725511484398,7.8637582,133.33,133.29,7.5023]
[1725511484701,0.3634582,133.33,133.31,7.5012]
[1725511485282,0.3634582,133.33,133.32,7.5007]
[1725511485475,0.3634582,133.33,133.32,52.5007]
[1725511494101,0.3634582,133.33,133.32,82.5007]
[1725511497691,0.3634582,133.33,133.32,37.5007]
[1725511499706,0.3634582,133.33,133.32,7.5007]
[1725511500504,0.3634582,133.33,133.31,26.2538]
[1725511500695,0.3634582,133.33,133.31,18.7526]
[1725511501414,0.3634582,133.33,133.31,26.2538]
[1725511503988,0.3634582,133.33,133.32,7.5007]
[1725511504514,0.3634582,133.33,133.32,52.5007]
[1725511505086,0.3634582,133.33,133.32,82.5007]
[1725511506719,0.3634582,133.33,133.32,52.5007]
[1725511509115,0.3634582,133.33,133.32,82.5007]
[1725511510303,0.3634582,133.33,133.32,93.55556602]
[1725511510502,0.3634582,133.33,133.32,82.5007]
[1725511510816,0.3634582,133.33,133.32,93.55556602]
[1725511516410,15.377,133.43,133.41,7.4954]
[1725511517198,0.8634582,133.47,133.43,7.4944]
[1725511517199,16.2404582,133.47,133.43,7.4944]
[1725511517398,0.8634582,133.47,133.44,11.05486602]
[1725511517618,0.8634582,133.47,133.45,45.0]
[1725511518121,0.8634582,133.47,133.46,18.54766602]
[1725511518307,0.8634582,133.47,133.46,63.54766602]
[1725511518618,0.16312232,133.49,133.48,26.221]
[1725511518826,0.16312232,133.49,133.48,91.221]
[1725511519002,0.16312232,133.49,133.48,18.7293]
[1725511519198,0.16312232,133.49,133.45,26.2267]
[1725511519817,0.16312232,133.49,133.48,7.4917]
[1725511520802,0.16312232,133.49,133.48,72.4917]
[1725511521003,0.16312232,133.49,133.48,52.4917]
[1725511521317,0.16312232,133.49,133.48,170.2317]
[1725511521522,0.16312232,133.49,133.48,147.6517]
[1725511522230,0.16312232,133.49,133.48,37.4917]
[1725511523905,0.16312232,133.49,133.48,7.4917]
[1725511524106,7.65432232,133.49,133.43,18.7358]
[1725511524312,0.16312232,133.49,133.44,30.0]
[1725511524631,6.21762232,133.49,133.45,7.4932]
[1725511525431,6.21762232,133.49,133.44,7.4939]
[1725511525924,6.21762232,133.49,133.45,48.7323]
[1725511525925,0.16312232,133.49,133.45,48.7323]
[1725511526541,0.16312232,133.49,133.48,7.4917]
[1725511526710,0.16312232,133.49,133.48,52.4917]
[1725511526906,0.16312232,133.49,133.48,7.4917]
[1725511528825,0.16312232,133.49,133.47,18.7296]
[1725511530637,0.16312232,133.49,133.47,26.2218]
[1725511531845,0.16312232,133.49,133.48,7.4917]
[1725511533644,0.16312232,133.49,133.47,26.2216]
[1725511534531,0.16312232,133.49,133.48,7.4917]
[1725511537749,0.16312232,133.49,133.48,203.90842685]
[1725511537921,24.0111,133.59,133.54,7.4881]
[1725511538351,16.5254,133.59,133.54,7.4881]
[1725511539249,14.5505582,133.6,133.55,27.49922685]
[1725511539250,0.8634582,133.6,133.55,27.49922685]
[1725511539552,0.8634582,133.6,133.59,7.4855]
[1725511540238,0.8634582,133.6,133.59,52.4855]
[1725511540952,21.9306,133.72,133.67,7.4806]
[1725511541131,1.01427501,133.71,133.67,7.4806]
[1725511541950,1.01427501,133.71,133.66,18.703]
[1725511542129,1.01427501,133.71,133.66,26.1846]
[1725511542334,16.50487501,133.72,133.66,26.1846]
[1725511542540,16.50487501,133.72,133.67,1.04818742]
[1725511542856,15.4906,133.72,133.68,7.4804]
[1725511543356,15.4906,133.72,133.66,26.1842]
[1725511543926,0.8634582,133.73,133.7,7.4793]
[1725511544131,0.8634582,133.73,133.72,7.4783]
[1725511544354,0.8634582,133.73,133.71,1.04902396]
[1725511544532,0.8634582,133.73,133.69,26.1797]
[1725511544733,0.8634582,133.73,133.7,7.4794]
[1725511545040,0.8634582,133.73,133.69,18.6998]
[1725511545041,0.8634582,133.73,133.69,26.1797]
[1725511545341,0.8634582,133.73,133.7,7.4791]
[1725511545740,0.8634582,133.73,133.69,18.6998]
[1725511545941,0.8634582,133.73,133.7,45.0]
[1725511546956,0.8634582,133.73,133.72,7.4783]
[1725511547657,0.8634582,133.73,133.72,26.174]
[1725511547858,0.8634582,133.73,133.72,71.174]
[1725511548047,0.8634582,133.73,133.72,26.174]
[1725511548557,0.8634582,133.73,133.72,71.174]
[1725511549153,0.8634582,133.73,133.72,26.174]
[1725511549456,0.8634582,133.73,133.72,71.174]
[1725511549836,0.8634582,133.73,133.72,101.174]
[1725511550059,0.8634582,133.73,133.72,56.174]
[1725511550534,0.8634582,133.73,133.72,101.174]
[1725511550732,0.8634582,133.73,133.72,48.6957]
[1725511551261,0.8634582,133.73,133.72,93.6957]
[1725511551460,0.8634582,133.73,133.72,48.6957]
[1725511551656,0.8634582,133.73,133.72,30.0]
[1725511552451,0.8634582,133.73,133.7,30.0]
[1725511552665,0.8634582,133.73,133.69,18.6998]
[1725511553155,7.4783,133.72,133.66,26.1851]
[1725511553364,20.0,133.71,133.66,26.1851]
[1725511553960,8.3416582,133.73,133.67,7.4809]
[1725511554146,20.0,133.72,133.66,26.1853]
[1725511554460,21.87773321,133.73,133.66,26.1853]
[1725511554851,21.87773321,133.73,133.66,18.7037]
[1725511555078,7.4791,133.71,133.66,18.7037]
[1725511555739,20.0,133.7,133.66,18.7037]
[1725511556161,20.0,133.7,133.63,18.7081]
[1725511556458,1.87773321,133.73,133.67,7.481]
[1725511556459,29.35563321,133.73,133.67,7.481]
[1725511556643,0.8634582,133.73,133.65,72.65922685]
[1725511556848,0.8634582,133.73,133.71,7.4786]
[1725511557063,0.8634582,133.73,133.69,18.6988]
[1725511557768,0.8634582,133.73,133.7,7.4789]
[1725511557938,0.8634582,133.73,133.69,18.6988]
[1725511558268,0.8634582,133.73,133.69,26.1786]
[1725511559137,0.8634582,133.73,133.7,7.4792]
[1725511559436,0.8634582,133.73,133.71,7.4785]
[1725511563153,0.8634582,133.73,133.69,26.1783]
[1725511563366,0.8634582,133.73,133.7,30.0]
[1725511563537,0.8634582,133.73,133.69,26.1783]
[1725511563941,0.8634582,133.73,133.7,7.4791]
[1725511567467,0.8634582,133.73,133.69,26.1787]
[1725511567664,0.8634582,133.73,133.7,7.4794]
[1725511568165,0.8634582,133.73,133.69,18.6988]
[1725511568471,20.8634582,133.73,133.69,18.6988]
[1725511568644,20.8634582,133.73,133.63,45.16]
[1725511568645,1.01427501,133.72,133.62,37.4191]
[1725511568846,21.9807,133.71,133.64,30.0]
[1725511569069,7.4815,133.67,133.64,30.0]
[1725511569643,7.4818,133.66,133.64,30.0]
[1725511569950,1.01427501,133.7,133.64,30.0]
[1725511570145,21.01427501,133.7,133.64,30.0]
[1725511570345,7.4812,133.67,133.64,30.0]
[1725511570549,7.4818,133.66,133.64,30.0]
[1725511570759,7.4809,133.68,133.62,7.4837]
[1725511570970,20.0,133.67,133.63,7.4832]
[1725511571153,21.01427501,133.7,133.61,18.7105]
[1725511571358,21.01427501,133.7,133.61,26.1949]
[1725511571764,7.4838,133.63,133.56,7.4872]
[1725511572080,1.01427501,133.63,133.57,7.4866]
[1725511572251,20.0,133.7,133.55,18.7195]
[1725511572252,16.2561,133.67,133.56,27.49922685]
[1725511572453,1.01427501,133.66,133.56,27.49922685]
[1725511572765,21.01427501,133.66,133.56,27.49922685]
[1725511572980,21.01427501,133.66,133.57,30.0]
[1725511573470,28.49597501,133.66,133.6,7.4849]
[1725511574878,16.2561,133.67,133.62,7.4838]
[1725511575051,16.2561,133.67,133.62,26.1934]
[1725511575367,23.7372,133.67,133.62,18.7096]
[1725511575575,24.75147501,133.67,133.62,18.7096]
[1725511576279,17.27037501,133.67,133.59,18.7137]
[1725511576445,21.01427501,133.66,133.59,18.7137]
[1725511576648,7.4827,133.65,133.59,26.1987]
[1725511577674,7.4828,133.64,133.59,26.1987]
[1725511577960,8.49647501,133.65,133.59,26.1987]
[1725511578882,7.4822,133.65,133.6,7.4849]
[1725511579090,20.0,133.66,133.59,18.7137]
[1725511579243,16.2561,133.67,133.62,7.4838]
[1725511579451,23.7373,133.67,133.61,18.7102]
[1725511579962,23.7373,133.67,133.61,26.1946]
[1725511580380,16.2561,133.67,133.63,7.4828]
[1725511580548,16.2561,133.67,133.63,18.7075]
[1725511580871,17.38487501,133.7,133.63,48.7075]
[1725511581071,17.38487501,133.7,133.66,7.4815]
[1725511582962,17.38487501,133.7,133.63,48.7075]
[1725511583164,17.38487501,133.7,133.64,30.0]
[1725511583883,17.38487501,133.7,133.63,18.7075]
[1725511584355,7.48,133.69,133.64,7.4827]
[1725511585009,1.01427501,133.68,133.6,18.7119]
[1725511585157,16.3706,133.7,133.6,18.7119]
[1725511585158,1.01427501,133.67,133.6,18.7119]
[1725511585473,23.1681,133.64,133.6,18.7119]
[1725511585677,27.4836,133.63,133.58,7.486]
[1725511586277,20.0,133.63,133.59,7.4852]
[1725511586873,29.6769,133.64,133.59,7.4852]
[1725511587051,20.0,133.63,133.59,7.4852]
[1725511588083,28.49797501,133.63,133.58,7.4859]
[1725511588256,28.49797501,133.63,133.59,7.4855]
[1725511588257,20.0,133.63,133.59,7.4855]
[1725511588459,21.01427501,133.63,133.59,7.4855]
[1725511590007,20.0,133.63,133.59,7.4855]
[1725511590288,20.0,133.63,133.59,18.713]
[1725511590459,20.0,133.63,133.59,26.198]
[1725511590460,21.01427501,133.63,133.59,26.198]
[1725511591981,20.0,133.63,133.6,7.4849]
[1725511592289,1.01427501,133.67,133.61,18.7101]
[1725511592583,7.4809,133.68,133.63,7.4829]
[1725511592779,8.49427501,133.69,133.64,7.4827]
[1725511593084,1.01427501,133.69,133.65,7.482]
[1725511593783,8.49447501,133.69,133.64,7.4827]
[1725511595774,20.0,133.68,133.64,7.4827]
[1725511596163,22.3437,133.7,133.65,18.7049]
[1725511596382,22.3437,133.7,133.67,7.481]
[1725511597692,16.64828668,133.73,133.65,67.4085]
[1725511597869,16.64828668,133.73,133.71,7.4788]
[1725511598071,16.64828668,133.73,133.69,26.1787]
[1725511598586,0.98188668,133.73,133.69,18.6993]
[1725511598994,0.98188668,133.73,133.71,7.4787]
[1725511599289,0.98188668,133.73,133.72,7.4783]
[1725511602469,0.98188668,133.73,133.72,82.4783]
[1725511603368,0.98188668,133.73,133.72,102.4783]
[1725511605868,0.98188668,133.73,133.72,82.4783]
[1725511606065,0.98188668,133.73,133.72,37.4783]
[1725511606480,0.98188668,133.73,133.72,7.4783]
[1725511608472,0.98188668,133.73,133.72,52.4783]
[1725511609495,0.98188668,133.73,133.72,82.4783]
[1725511609682,0.98188668,133.73,133.72,37.4783]
[1725511609990,0.8634582,133.73,133.72,37.4783]
[1725511611065,0.8634582,133.73,133.72,82.4783]
[1725511613596,0.8634582,133.73,133.72,37.4783]
[1725511616988,0.8634582,133.73,133.72,7.4783]
[1725511617880,0.8634582,133.73,133.72,37.4783]
[1725511618578,0.8634582,133.73,133.72,82.4783]
[1725511624304,0.8634582,133.73,133.72,52.4783]
[1725511625510,0.8634582,133.73,133.72,82.4783]
[1725511626982,0.8634582,133.73,133.72,52.4783]
[1725511627879,0.8634582,133.73,133.72,82.4783]
[1725511628292,0.8634582,133.73,133.72,197.61681813]
[1725511630508,0.1,133.8,133.79,7.4744]
[1725511635317,0.1,133.8,133.79,82.4744]
[1725511636286,0.1,133.8,133.79,37.4744]
[1725511636490,0.1,133.8,133.79,82.4744]
[1725511640192,0.1,133.8,133.79,37.4744]
[1725511641490,0.1,133.8,133.79,82.4744]
[1725511643297,0.1,133.8,133.79,127.6344]
[1725511643693,0.1,133.8,133.79,37.4744]
[1725511644113,0.1,133.8,133.79,30.0]
[1725511644611,1.11427501,133.8,133.75,18.6909]
[1725511644815,8.58857501,133.8,133.75,18.6909]
[1725511645039,7.4744,133.79,133.74,7.4771]
[1725511645230,7.4744,133.79,133.75,30.0]
[1725511645600,1.01427501,133.78,133.75,30.0]
[1725511646124,1.01427501,133.78,133.72,18.6951]
[1725511646302,6.0986,133.77,133.73,30.0]
[1725511647325,6.0986,133.77,133.73,48.6941]
[1725511648425,7.11287501,133.77,133.73,48.6941]
[1725511648609,23.5149,133.75,133.73,30.0]
[1725511649313,16.038,133.75,133.71,7.4787]
[1725511649502,17.05227501,133.75,133.7,26.1777]
[1725511649703,17.05227501,133.75,133.71,30.0]
[1725511649704,1.01427501,133.74,133.71,30.0]
[1725511649922,7.4783,133.72,133.66,18.7028]
[1725511650113,21.01427501,133.74,133.66,18.7028]
[1725511650303,16.038,133.75,133.7,7.4794]
[1725511650504,21.01427501,133.74,133.69,7.4798]
[1725511651307,20.0,133.74,133.69,7.4798]
[1725511652305,20.0,133.74,133.7,0.7183537]
[1725511652706,16.038,133.75,133.7,19.4160537]
[1725511652924,16.038,133.75,133.71,7.4784]
[1725511653120,16.038,133.75,133.73,7.4777]
[1725511653421,16.038,133.75,133.71,30.0]
[1725511653422,16.038,133.75,133.74,7.4771]
[1725511653632,6.0986,133.77,133.74,7.4771]
[1725511654832,6.0986,133.77,133.73,7.4776]
[1725511656227,15.1156,133.78,133.74,7.4769]
[1725511657223,1.01427501,133.77,133.71,30.0]
[1725511657528,28.48977501,133.77,133.71,37.4784]
[1725511657702,1.01427501,133.76,133.71,37.4784]
[1725511658103,8.49047501,133.76,133.71,37.4784]
[1725511658824,0.11842848,133.79,133.75,27.39851813]
[1725511659038,0.11842848,133.79,133.78,7.4749]
[1725511659334,0.8634582,133.86,133.85,26.1486]
[1725511659723,1.01427501,133.98,133.94,7.4658]
[1725511659906,1.01427501,133.98,133.95,7.4653]
[1725511660113,0.8634582,134.0,133.95,18.6636]
[1725511660428,0.8634582,134.0,133.98,26.1223]
[1725511660925,0.8634582,134.0,133.99,1.49229636]
[1725511661324,0.8634582,134.0,133.99,90.4]
[1725511661520,1.01427501,134.12,134.07,7.4587]
[1725511661705,1.01427501,134.12,134.05,18.6489]
[1725511661911,1.01427501,134.15,134.08,7.458]
[1725511663022,1.01427501,134.12,134.05,18.6489]
[1725511663225,1.01427501,134.12,134.05,26.1085]
[1725511663613,1.01427501,134.12,134.0,18.6554]
[1725511663832,7.4579,134.09,134.0,26.1178]
[1725511664132,21.01427501,134.08,134.0,18.6554]
[1725511664311,17.06987501,134.07,133.96,18.6622]
[1725511664516,7.46,134.05,133.97,7.464]
[1725511664838,21.01427501,134.04,133.97,7.464]
[1725511665243,1.01427501,134.04,133.97,7.464]
[1725511665444,1.01427501,134.04,133.98,1.25674574]
[1725511666125,21.01427501,134.04,133.98,1.25674574]
[1725511666532,28.47477501,134.04,133.97,7.464]
[1725511666729,1.01427501,134.04,133.96,18.6622]
[1725511666936,8.47367501,134.06,133.96,18.6622]
[1725511667141,8.47367501,134.06,133.98,7.4633]
[1725511667142,7.4599,134.05,133.98,7.4633]
[1725511667346,1.01427501,134.04,133.98,7.4633]
[1725511668136,1.01427501,134.04,133.96,26.1265]
[1725511668339,1.01427501,134.03,133.94,7.4655]
[1725511669536,7.4623,134.01,133.94,7.4655]
[1725511669758,21.01427501,134.0,133.94,7.4657]
[1725511669933,21.01427501,134.0,133.95,7.4654]
[1725511670629,20.0,134.0,133.95,18.663]
[1725511670831,1.01427501,134.02,133.97,7.4643]
[1725511671039,22.366,134.07,133.95,18.663]
[1725511671040,1.01427501,134.06,133.95,18.663]
[1725511671246,7.4617,134.02,133.95,18.663]
[1725511671425,1.01427501,134.01,133.95,18.663]
[1725511672025,8.47637501,134.01,133.95,26.1282]
[1725511672234,1.01427501,134.0,133.95,26.1282]
[1725511674246,7.4615,134.03,133.96,7.4648]
[1725511674427,21.01427501,134.02,133.96,7.4648]
[1725511674630,1.01427501,134.01,133.96,7.4648]
[1725511674837,1.01427501,134.01,133.95,26.1279]
[1725511675033,1.01427501,134.01,133.96,7.4647]
[1725511677650,8.47637501,134.01,133.95,26.1284]
[1725511678051,1.01427501,134.01,133.95,18.663]
[1725511678344,1.01427501,134.01,133.95,26.1283]
[1725511678644,1.01427501,134.04,133.95,26.1283]
[1725511678856,7.4616,134.02,133.96,7.4648]
[1725511679035,7.4616,134.02,133.95,18.663]
[1725511679036,1.01427501,134.01,133.97,7.4643]
[1725511679233,1.01427501,134.01,133.95,26.1279]
[1725511679436,7.4621,134.01,133.96,7.4648]
[1725511679644,7.4615,134.02,133.96,7.4648]
[1725511679950,1.01427501,134.01,133.96,7.4648]
[1725511680529,18.6486,134.06,133.95,26.1283]
[1725511680530,1.01427501,134.05,133.95,26.1283]
[1725511680731,7.4627,134.0,133.95,18.663]
[1725511681055,1.01427501,133.99,133.95,18.663]
[1725511681352,1.01427501,134.04,133.97,7.4641]
[1725511682234,7.4611,134.03,133.97,7.4641]
[1725511682568,1.01427501,134.02,133.97,7.4641]
[1725511683227,1.01427501,134.03,133.98,7.4637]
[1725511683432,7.4605,134.04,133.99,7.4627]
[1725511683433,1.01427501,134.04,133.99,7.4627]
[1725511683648,7.461,134.03,133.98,37.4637]
[1725511683840,1.01427501,134.02,133.98,37.4637]
[1725511685831,7.461,134.03,133.98,37.4637]
[1725511686030,7.461,134.03,133.98,7.4637]
[1725511686842,8.47417501,134.05,134.0,7.4625]
[1725511687040,7.4605,134.04,133.99,26.1202]
[1725511688132,8.47427501,134.05,134.0,7.4626]
[1725511688444,1.01427501,134.04,134.0,7.4626]
[1725511689265,7.46,134.05,134.0,7.4626]
[1725511689266,22.2499,134.11,134.0,34.07961175]
[1725511689559,22.2499,134.11,134.06,26.1062]
[1725511689560,1.01427501,134.1,134.06,26.1062]
[1725511690232,22.2499,134.11,134.06,26.1062]
[1725511690233,15.9266,134.11,134.07,7.4586]
[1725511690637,23.3832,134.11,134.06,26.1062]
[1725511691440,1.87773321,134.13,134.0,30.0]
[1725511691441,6.5295,134.02,134.0,30.0]
[1725511691641,7.4633,133.99,133.93,18.6651]
[1725511691843,1.01427501,134.01,133.93,18.6651]
[1725511692631,7.4627,134.0,133.93,26.1311]
[1725511692860,7.4633,133.99,133.94,7.4659]
[1725511693153,7.4633,133.99,133.93,26.1316]
[1725511693360,21.01427501,134.01,133.88,41.54291175]
[1725511693361,7.4644,133.97,133.91,7.4672]
[1725511693742,7.4644,133.97,133.92,7.4669]
[1725511693943,7.4637,133.99,133.92,7.4669]
[1725511694157,7.4637,133.99,133.94,7.4658]
[1725511694342,7.4627,134.0,133.94,7.4658]
[1725511694849,27.4621,134.01,133.96,7.4646]